bitfinex/quotes_BTCUSD_20240729
["timestamp","ask_amount","ask_price","bid_price","bid_amount"]
[1722219661997,0.03673951,69345.0,69344.0,0.346099]
[1722219662551,0.03673951,69345.0,69344.0,0.576832]
[1722219663265,0.03673951,69345.0,69344.0,0.811565]
[1722219663393,0.01209572,69345.0,69344.0,0.811565]
[1722219663601,0.002,69348.0,69347.0,0.576807]
[1722219663859,0.0669,69351.0,69350.0,0.346069]
[1722219664096,0.01409572,69345.0,69344.0,0.004]
[1722219664215,0.002,69345.0,69344.0,0.350099]
[1722219664435,0.002,69345.0,69344.0,0.580832]
[1722219664642,0.002,69345.0,69344.0,0.811565]
[1722219664853,0.0669,69351.0,69350.0,0.115356]
[1722219665059,0.0669,69351.0,69350.0,0.346069]
[1722219665388,0.07899572,69351.0,69350.0,0.346069]
[1722219665594,0.01309572,69351.0,69350.0,0.807495]
[1722219665999,0.01309572,69351.0,69350.0,0.576782]
[1722219666590,0.001,69351.0,69350.0,0.576782]
[1722219666781,0.01309572,69351.0,69350.0,0.576782]
[1722219667810,0.01509572,69351.0,69350.0,0.576782]
[1722219668010,0.01409572,69351.0,69350.0,0.576782]
[1722219668485,0.002,69351.0,69350.0,0.346069]
[1722219668691,0.01209572,69351.0,69350.0,0.576782]
[1722219668893,0.01209572,69351.0,69338.0,0.00839763]
[1722219668894,0.01209572,69355.0,69352.0,0.1453]
[1722219669126,0.01209572,69354.0,69353.0,0.346054]
[1722219669356,0.002,69357.0,69356.0,0.346039]
[1722219669576,0.01209572,69357.0,69356.0,0.576732]
[1722219669805,0.01209572,69357.0,69356.0,0.807425]
[1722219670030,0.002,69362.0,69352.0,0.1453]
[1722219670255,0.002,69362.0,69361.0,0.346015]
[1722219670505,0.002,69362.0,69361.0,0.576692]
[1722219670755,0.1148,69369.0,69363.0,0.346005]
[1722219670995,0.09063,69371.0,69352.0,0.1453]
[1722219671239,0.00813,69371.0,69370.0,0.34597]
[1722219671463,0.00813,69371.0,69370.0,0.230647]
[1722219671710,0.00813,69371.0,69352.0,0.1513]
[1722219671945,0.05813,69371.0,69352.0,0.006]
[1722219672181,0.1,69370.0,69359.0,0.230682]
[1722219672397,0.1,69370.0,69353.0,0.24149064]
[1722219672635,0.23066,69366.0,69360.0,0.01073802]
[1722219672878,0.05,69368.0,69356.0,0.115346]
[1722219673106,0.05,69369.0,69352.0,0.006]
[1722219673107,0.1,69365.0,69352.0,0.006]
[1722219673339,0.01209572,69358.0,69357.0,0.12609974]
[1722219673562,0.01209572,69358.0,69357.0,0.576725]
[1722219673766,0.01209572,69358.0,69357.0,0.5874825]
[1722219674074,0.03473506,69358.0,69357.0,0.5874825]
[1722219674494,0.02263934,69358.0,69357.0,0.5874825]
[1722219674697,0.03473506,69358.0,69357.0,0.5874825]
[1722219675137,0.02263934,69358.0,69357.0,0.8181725]
[1722219675768,0.05,69370.0,69362.0,0.461346]
[1722219675919,0.00813,69371.0,69358.0,0.230685]
[1722219676145,0.00813,69371.0,69368.0,0.115326]
[1722219676816,0.02222572,69371.0,69370.0,0.34597]
[1722219677025,0.02222572,69371.0,69369.0,0.01067081]
[1722219677026,0.01409572,69370.0,69369.0,0.01067081]
[1722219677230,0.08883,69371.0,69363.0,0.115334]
[1722219677231,0.002,69369.0,69363.0,0.115334]
[1722219677432,0.05,69368.0,69361.0,0.115338]
[1722219677641,0.01209572,69362.0,69361.0,0.115338]
[1722219677850,0.01209572,69362.0,69359.0,0.11534]
[1722219678014,0.01209572,69360.0,69359.0,0.11534]
[1722219678234,0.052,69369.0,69353.0,0.00854475]
[1722219678235,0.05,69368.0,69353.0,0.00854475]
[1722219678435,0.002,69369.0,69368.0,0.115326]
[1722219678638,0.08883,69371.0,69358.0,0.230687]
[1722219679104,0.08883,69371.0,69364.0,0.230665]
[1722219679402,0.10292572,69371.0,69370.0,0.115323]
[1722219679852,0.01409572,69369.0,69368.0,0.345979]
[1722219680368,0.01409572,69369.0,69368.0,0.115326]
[1722219680500,0.01409572,69369.0,69368.0,0.345979]
[1722219680501,0.002,69369.0,69368.0,0.345979]
[1722219680704,0.01409572,69369.0,69368.0,0.345979]
[1722219681679,0.01409572,69369.0,69368.0,0.576632]
[1722219682496,0.02263606,69369.0,69368.0,0.807285]
[1722219682655,0.02263606,69369.0,69368.0,1.037938]
[1722219682851,0.02263606,69369.0,69368.0,0.807285]
[1722219683055,0.00813,69371.0,69370.0,0.807264]
[1722219683256,0.00813,69371.0,69370.0,0.576617]
[1722219684016,0.00813,69371.0,69370.0,0.115323]
[1722219684218,0.00813,69371.0,69368.0,0.115325]
[1722219684473,0.0609,69370.0,69363.0,0.115334]
[1722219684673,0.0609,69370.0,69362.0,0.12379923]
[1722219684674,0.002,69363.0,69362.0,0.12379923]
[1722219684877,0.002,69363.0,69362.0,0.346009]
[1722219685071,0.0827,69368.0,69356.0,0.1]
[1722219685072,0.002,69360.0,69358.0,0.00853501]
[1722219685228,0.002,69360.0,69359.0,0.576705]
[1722219686458,0.002,69360.0,69359.0,0.346022]
[1722219686655,0.01209572,69361.0,69360.0,0.46136]
[1722219686855,0.002,69365.0,69364.0,0.115333]
[1722219687145,0.01209572,69365.0,69364.0,0.346]
[1722219687349,0.00813,69371.0,69362.0,0.07512979]
[1722219687569,0.00813,69371.0,69370.0,0.34597]
[1722219687772,0.00813,69371.0,69370.0,0.807264]
[1722219689177,0.00813,69371.0,69370.0,0.81723367]
[1722219689376,0.03076355,69371.0,69370.0,0.81723367]
[1722219689770,0.00813,69371.0,69370.0,0.81723367]
[1722219690328,0.00813,69371.0,69370.0,1.14788067]
[1722219690472,0.00813,69371.0,69370.0,0.91723367]
[1722219690673,0.00813,69371.0,69370.0,1.19978495]
[1722219690874,0.00813,69371.0,69370.0,1.14788067]
[1722219691092,0.00813,69371.0,69370.0,0.91723367]
[1722219691294,0.00813,69371.0,69370.0,1.0069644]
[1722219691522,0.00813,69371.0,69370.0,0.93123367]
[1722219691721,0.00813,69371.0,69370.0,0.95513795]
[1722219692496,0.00813,69371.0,69370.0,1.18578495]
[1722219692710,0.00813,69371.0,69370.0,0.95513795]
[1722219692908,0.030763,69371.0,69370.0,0.95513795]
[1722219693717,0.030763,69371.0,69370.0,0.91723367]
[1722219693968,0.030763,69371.0,69370.0,0.92570062]
[1722219694174,0.00813,69371.0,69370.0,0.92570062]
[1722219694546,0.00813,69371.0,69370.0,1.17034762]
[1722219694745,0.00813,69371.0,69370.0,0.93970062]
[1722219695777,0.00813,69371.0,69370.0,0.92570062]
[1722219696380,0.00813,69371.0,69370.0,0.93970062]
[1722219696582,0.00813,69371.0,69370.0,1.17034762]
[1722219696828,0.00813,69371.0,69370.0,0.93970062]
[1722219697702,0.0307625,69371.0,69370.0,1.17034762]
[1722219698154,0.0307625,69371.0,69370.0,1.15634762]
[1722219698599,0.0307625,69371.0,69370.0,1.17034762]
[1722219698773,0.00813,69371.0,69370.0,1.15634762]
[1722219698980,0.00813,69371.0,69370.0,0.92570062]
[1722219699201,0.00813,69371.0,69370.0,0.93970062]
[1722219700425,0.00813,69371.0,69370.0,1.22801062]
[1722219701692,0.03076345,69371.0,69370.0,1.52205762]
[1722219701895,0.00813,69371.0,69370.0,1.60205762]
[1722219702040,0.00813,69371.0,69370.0,1.58805762]
[1722219702249,0.00813,69371.0,69370.0,1.60205762]
[1722219702709,0.00813,69371.0,69370.0,1.58805762]
[1722219702947,0.00813,69381.0,69380.0,1.07566728]
[1722219703074,0.00084,69382.0,69381.0,0.345915]
[1722219703275,0.00084,69382.0,69381.0,0.964785]
[1722219703500,0.0658,69399.0,69398.0,0.345831]
[1722219703704,0.002,69399.0,69398.0,0.864575]
[1722219703905,0.002,69399.0,69398.0,0.87430609]
[1722219705315,0.02462548,69399.0,69398.0,0.87430609]
[1722219706360,0.002,69399.0,69398.0,0.87430609]
[1722219706558,0.01409572,69399.0,69398.0,0.87430609]
[1722219706787,0.002,69399.0,69398.0,0.87430609]
[1722219707154,0.002,69399.0,69398.0,0.88296027]
[1722219707317,0.002,69399.0,69398.0,1.15479303]
[1722219707532,0.002,69399.0,69398.0,0.88296027]
[1722219709281,0.002,69399.0,69398.0,1.21351427]
[1722219709482,0.002,69399.0,69398.0,1.35601427]
[1722219709689,0.002,69416.0,69398.0,1.35601427]
[1722219709690,0.00829684,69417.0,69400.0,0.230546]
[1722219709968,0.00829684,69417.0,69416.0,0.345741]
[1722219710169,0.00829684,69417.0,69416.0,1.194849]
[1722219710374,0.00829684,69417.0,69416.0,1.27528373]
[1722219710577,0.00829684,69417.0,69416.0,1.28485352]
[1722219710786,0.00829684,69417.0,69416.0,1.27985352]
[1722219711215,0.00829684,69417.0,69416.0,1.51034752]
[1722219711427,0.06,69418.0,69417.0,0.66413128]
[1722219711428,0.04839016,69418.0,69417.0,0.66413128]
[1722219711653,0.04839016,69418.0,69417.0,0.9658912]
[1722219711872,0.04839016,69418.0,69417.0,1.43642386]
[1722219712114,0.04839016,69418.0,69417.0,1.53882188]
[1722219712363,0.04839016,69418.0,69417.0,1.53726768]
[1722219712572,0.04839016,69418.0,69417.0,1.30677668]
[1722219712788,0.04839016,69418.0,69417.0,1.53726768]
[1722219713639,0.04839016,69418.0,69417.0,1.30833088]
[1722219713849,0.07100515,69418.0,69417.0,1.53882188]
[1722219714058,0.07100515,69418.0,69417.0,1.58394444]
[1722219714264,0.04839016,69418.0,69417.0,1.54604016]
[1722219714935,0.01677316,69418.0,69417.0,1.59604016]
[1722219715761,0.00144914,69419.0,69418.0,1.037191]
[1722219715938,0.00144914,69419.0,69418.0,1.53166833]
[1722219716422,0.00144914,69419.0,69418.0,1.53964679]
[1722219716771,0.00144914,69419.0,69418.0,1.57755107]
[1722219717581,0.02406282,69419.0,69418.0,1.57755107]
[1722219717791,0.02406282,69419.0,69418.0,1.53964679]
[1722219717985,0.02406282,69419.0,69418.0,1.57755107]
[1722219718564,0.02406282,69419.0,69418.0,1.59155107]
[1722219718978,0.02406282,69419.0,69418.0,1.54075385]
[1722219719160,0.02406282,69419.0,69418.0,1.50284957]
[1722219719360,0.02406282,69419.0,69418.0,1.17236257]
[1722219719564,0.02406282,69419.0,69418.0,1.21026685]
[1722219719843,0.02406282,69419.0,69418.0,1.17236257]
[1722219720065,0.00144914,69419.0,69418.0,1.17236257]
[1722219721191,0.00144914,69419.0,69418.0,1.50284957]
[1722219722032,0.00144914,69419.0,69418.0,1.27236257]
[1722219723110,0.06674914,69419.0,69418.0,0.71138857]
[1722219723315,0.06674914,69419.0,69418.0,0.65737266]
[1722219723542,0.06674914,69419.0,69418.0,0.88785966]
[1722219723748,0.06674914,69419.0,69418.0,0.94095204]
[1722219723953,0.06674914,69419.0,69418.0,0.71046504]
[1722219724163,0.06674914,69419.0,69418.0,0.94095204]
[1722219724372,0.06674914,69419.0,69418.0,0.88785966]
[1722219724587,0.06674914,69419.0,69418.0,0.65737266]
[1722219724829,0.06674914,69419.0,69418.0,0.31164266]
[1722219724830,0.14187893,69419.0,69418.0,0.31164266]
[1722219725065,0.15397465,69419.0,69418.0,0.29764266]
[1722219725278,0.06874914,69419.0,69418.0,0.41288566]
[1722219725489,0.06674914,69419.0,69418.0,0.65737266]
[1722219725694,0.06674914,69419.0,69418.0,0.64337266]
[1722219725695,0.07884486,69419.0,69418.0,0.64337266]
[1722219726104,0.08936683,69419.0,69418.0,0.41288566]
[1722219726307,0.08936683,69419.0,69418.0,0.29764266]
[1722219726511,0.10146255,69419.0,69418.0,0.29764266]
[1722219726721,0.14187893,69419.0,69418.0,0.29764266]
[1722219726929,0.14187893,69419.0,69418.0,0.28811]
[1722219727397,0.06674914,69419.0,69418.0,0.403353]
[1722219728125,0.08084486,69419.0,69418.0,0.28811]
[1722219728366,0.08084486,69419.0,69418.0,0.403353]
[1722219728606,0.08084486,69419.0,69418.0,0.28811]
[1722219728845,0.06874914,69419.0,69418.0,0.28811]
[1722219729021,0.08084486,69419.0,69418.0,0.28811]
[1722219729264,0.06874914,69419.0,69418.0,0.28811]
[1722219729476,0.08084486,69419.0,69418.0,0.28811]
[1722219729711,0.06874914,69419.0,69418.0,0.28811]
[1722219729952,0.06874914,69419.0,69418.0,0.403353]
[1722219729953,0.07584486,69419.0,69418.0,0.403353]
[1722219730213,0.07584486,69419.0,69418.0,0.28811]
[1722219730449,0.09846398,69419.0,69418.0,0.28811]
[1722219731839,0.07584486,69419.0,69418.0,0.28811]
[1722219732987,0.07584486,69419.0,69418.0,0.30211]
[1722219733647,0.72718465,69419.0,69418.0,0.30211]
[1722219733866,0.88718031,69419.0,69418.0,0.30211]
[1722219734087,0.92508459,69419.0,69418.0,0.27189901]
[1722219734306,0.9769312,69419.0,69418.0,0.27189901]
[1722219734526,0.35108252,69419.0,69418.0,0.27189901]
[1722219734735,0.64599513,69419.0,69418.0,0.27189901]
[1722219734959,0.83467156,69419.0,69418.0,0.27189901]
[1722219735168,0.87257584,69419.0,69418.0,0.25789901]
[1722219735376,1.16748845,69419.0,69418.0,0.25789901]
[1722219735591,0.89653996,69419.0,69418.0,0.26989901]
[1722219735802,0.75189078,69419.0,69418.0,0.26989901]
[1722219736013,0.8499548,69419.0,69418.0,0.26989901]
[1722219736215,0.98749047,69419.0,69418.0,0.26989901]
[1722219736868,0.90156431,69419.0,69418.0,0.26989901]
[1722219737069,0.98750148,69419.0,69418.0,0.26989901]
[1722219737280,0.98751404,69419.0,69418.0,0.26989901]
[1722219737492,0.75503004,69419.0,69418.0,0.26989901]
[1722219737703,0.98551404,69419.0,69418.0,0.26989901]
[1722219737907,0.89956431,69419.0,69418.0,0.26989901]
[1722219738337,1.00697201,69419.0,69418.0,0.26989901]
[1722219738546,0.89956431,69419.0,69418.0,0.26989901]
[1722219738758,0.92418547,69419.0,69418.0,0.26989901]
[1722219738991,0.89058981,69419.0,69418.0,0.26989901]
[1722219739236,0.26064992,69419.0,69418.0,0.61562901]
[1722219739453,0.26064992,69419.0,69418.0,0.84611601]
[1722219739454,0.03871688,69419.0,69418.0,0.84611601]
[1722219739672,0.03871688,69419.0,69418.0,1.07660301]
[1722219739673,0.02662116,69419.0,69418.0,1.07660301]
[1722219740098,0.00405213,69419.0,69418.0,1.44499429]
[1722219740313,0.000367,69429.0,69419.0,0.05071779]
[1722219740579,0.000367,69429.0,69420.0,0.3198642]
[1722219740790,0.000367,69429.0,69423.0,0.230468]
[1722219740993,0.00746272,69429.0,69428.0,0.345681]
[1722219741213,0.1423,69428.0,69424.0,0.0015542]
[1722219741421,0.1423,69428.0,69418.0,0.01071853]
[1722219741422,0.18529267,69428.0,69425.0,0.28808]
[1722219741636,0.1423,69428.0,69425.0,0.28808]
[1722219741876,0.00709572,69426.0,69425.0,0.28808]
[1722219742096,0.1423,69428.0,69425.0,0.28808]
[1722219742097,0.15822125,69427.0,69425.0,0.28808]
[1722219742318,0.15822225,69426.0,69425.0,0.28808]
[1722219742535,0.76859059,69426.0,69425.0,0.28808]
[1722219742765,1.01367122,69426.0,69425.0,0.28808]
[1722219742982,1.01367122,69426.0,69418.0,0.014]
[1722219742983,0.42289959,69426.0,69418.0,0.014]
[1722219743198,0.655926,69419.0,69418.0,0.014]
[1722219743414,0.61457631,69419.0,69418.0,0.014]
[1722219743640,1.16158899,69419.0,69418.0,0.30211]
[1722219743860,1.07554431,69419.0,69418.0,0.28811]
[1722219744287,1.18307738,69419.0,69418.0,0.28811]
[1722219744501,1.45646566,69419.0,69418.0,0.28811]
[1722219744710,0.95259338,69419.0,69418.0,0.28811]
[1722219744934,1.06494987,69419.0,69418.0,0.28811]
[1722219745591,1.21543039,69419.0,69418.0,0.28811]
[1722219746043,1.17452611,69419.0,69418.0,0.28811]
[1722219746299,0.83646587,69419.0,69418.0,0.28811]
[1722219747031,0.23053987,69419.0,69418.0,0.28811]
[1722219747287,0.31467636,69419.0,69418.0,0.28811]
[1722219747514,0.22853987,69419.0,69418.0,0.28811]
[1722219747726,0.25116047,69419.0,69418.0,0.28811]
[1722219747952,0.16931632,69419.0,69418.0,0.28811]
[1722219748227,0.23386616,69419.0,69418.0,0.28811]
[1722219748450,0.45678311,69419.0,69418.0,0.28811]
[1722219748662,0.44001244,69419.0,69418.0,0.28811]
[1722219748883,0.62959216,69419.0,69418.0,0.28811]
[1722219749342,0.23386616,69419.0,69418.0,0.28811]
[1722219749570,0.65797878,69419.0,69418.0,0.28811]
[1722219749783,1.03136706,69419.0,69418.0,0.28811]
[1722219749990,1.44078989,69419.0,69418.0,0.28811]
[1722219750197,1.45069243,69419.0,69418.0,0.28811]
[1722219750621,1.42230581,69419.0,69418.0,0.28811]
[1722219750841,1.169294,69419.0,69418.0,0.28811]
[1722219751086,1.33947286,69419.0,69418.0,0.28811]
[1722219751320,0.98753954,69419.0,69418.0,0.28811]
[1722219751536,1.09212259,69419.0,69418.0,0.28811]
[1722219751755,0.6762495,69419.0,69418.0,0.28811]
[1722219752046,0.86382922,69419.0,69418.0,0.28811]
[1722219752293,0.46810322,69419.0,69418.0,0.28811]
[1722219752536,0.44547927,69419.0,69418.0,0.28811]
[1722219752740,0.79120527,69419.0,69418.0,0.28811]
[1722219752967,0.44547927,69419.0,69418.0,0.28811]
[1722219753177,1.0792929,69419.0,69418.0,0.28811]
[1722219753388,0.95006032,69419.0,69418.0,0.28811]
[1722219754013,0.95006032,69419.0,69418.0,0.20269318]
[1722219754014,0.69152322,69419.0,69418.0,0.20269318]
[1722219754243,0.8444988,69419.0,69418.0,0.20269318]
[1722219754651,0.6140148,69419.0,69418.0,0.20269318]
[1722219754858,0.8444988,69419.0,69418.0,0.20269318]
[1722219755073,1.0749828,69419.0,69418.0,0.20269318]
[1722219755500,1.3054668,69419.0,69418.0,0.20269318]
[1722219755708,1.45732734,69419.0,69418.0,0.20369318]
[1722219755959,1.49364269,69419.0,69418.0,0.20369318]
[1722219756162,1.69345877,69419.0,69418.0,0.20269318]
[1722219756368,1.53992479,69419.0,69418.0,0.20269318]
[1722219756788,1.53692479,69419.0,69418.0,0.20269318]
[1722219757024,1.53692479,69419.0,69397.0,0.0015542]
[1722219757025,0.1,69398.0,69397.0,0.0015542]
[1722219757228,0.1,69398.0,69393.0,0.45077872]
[1722219757229,0.215283,69394.0,69393.0,0.45077872]
[1722219757443,0.1,69392.0,69381.0,0.230609]
[1722219757668,0.1,69392.0,69386.0,0.115297]
[1722219757669,0.00709572,69387.0,69386.0,0.115297]
[1722219757878,0.002,69392.0,69391.0,0.115288]
[1722219758099,0.08615521,69400.0,69395.0,0.345846]
[1722219758100,0.04307783,69396.0,69395.0,0.345846]
[1722219758338,0.00709572,69396.0,69395.0,0.403492]
[1722219758551,0.04307783,69401.0,69395.0,0.403492]
[1722219758552,0.00709572,69398.0,69397.0,0.576392]
[1722219758764,0.002,69401.0,69397.0,0.230557]
[1722219758765,0.04307783,69399.0,69397.0,0.230557]
[1722219758974,0.06461675,69402.0,69401.0,0.345816]
[1722219758975,0.00709572,69402.0,69401.0,0.345816]
[1722219759178,0.08446568,69402.0,69401.0,0.86454]
[1722219759390,0.08615521,69408.0,69403.0,0.345805]
[1722219759391,0.0501626,69404.0,69403.0,0.345805]
[1722219759621,0.00709572,69404.0,69403.0,0.864512]
[1722219759832,0.00709572,69404.0,69403.0,0.633975]
[1722219760045,0.09129794,69404.0,69403.0,0.633975]
[1722219760253,0.00909572,69404.0,69403.0,0.633975]
[1722219760692,0.00909572,69404.0,69403.0,0.640975]
[1722219760919,0.01009572,69404.0,69403.0,0.871512]
[1722219761143,0.001,69404.0,69403.0,0.871512]
[1722219761577,0.001,69404.0,69403.0,1.102973]
[1722219762016,0.04307276,69407.0,69406.0,0.576317]
[1722219762243,0.00709572,69409.0,69408.0,0.34578]
[1722219762244,0.04307276,69409.0,69408.0,0.34578]
[1722219762461,0.05018572,69410.0,69409.0,0.575292]
[1722219762683,0.08614552,69416.0,69410.0,0.345771]
[1722219762684,0.04308837,69411.0,69410.0,0.345771]
[1722219762911,0.04308518,69416.0,69410.0,0.3549942]
[1722219763131,0.00709572,69421.0,69419.0,0.57521]
[1722219763132,0.00709572,69420.0,69419.0,0.57521]
[1722219763343,0.00909572,69420.0,69419.0,0.86332]
[1722219763600,0.07172349,69421.0,69420.0,0.55358354]
[1722219763813,0.00709572,69421.0,69420.0,1.07116454]
[1722219764027,0.00709572,69423.0,69422.0,0.576185]
[1722219764241,0.07173445,69423.0,69422.0,0.864275]
[1722219764671,0.09988927,69423.0,69422.0,0.864275]
[1722219764914,0.04868049,69423.0,69422.0,0.28809]
[1722219765141,0.18643118,69423.0,69422.0,0.403327]
[1722219765391,0.10022003,69423.0,69422.0,0.28809]
[1722219765648,0.20795125,69423.0,69422.0,0.633801]
[1722219765881,0.10022003,69423.0,69422.0,0.864275]
[1722219766133,0.05200041,69423.0,69422.0,1.094749]
[1722219766362,0.0502087,69423.0,69422.0,1.093749]
[1722219766594,0.0502087,69423.0,69422.0,0.863275]
[1722219766833,0.00809572,69423.0,69422.0,0.869275]
[1722219767565,0.00809572,69423.0,69422.0,1.099749]
[1722219767566,0.04410993,69423.0,69422.0,1.099749]
[1722219767802,0.0738227,69423.0,69422.0,1.099749]
[1722219768031,0.0738227,69423.0,69422.0,0.869275]
[1722219768262,0.00809572,69423.0,69422.0,0.869275]
[1722219768726,0.08723276,69423.0,69422.0,0.408327]
[1722219768956,0.06157223,69423.0,69422.0,0.869275]
[1722219769202,0.00809572,69423.0,69422.0,0.638801]
[1722219769449,0.09125156,69423.0,69422.0,0.28709]
[1722219769690,0.11493231,69423.0,69422.0,0.517564]
[1722219769924,0.05702558,69423.0,69422.0,0.863275]
[1722219770158,0.04992986,69423.0,69422.0,0.863275]
[1722219770389,0.05129096,69423.0,69422.0,0.517564]
[1722219770617,0.09123771,69423.0,69422.0,0.517564]
[1722219770836,0.10784307,69423.0,69422.0,0.632801]
[1722219771067,0.10027845,69423.0,69422.0,0.28709]
[1722219771442,0.24157845,69423.0,69422.0,0.28709]
[1722219771443,0.24157845,69423.0,69422.0,0.402327]
[1722219771444,0.09318273,69423.0,69422.0,0.402327]
[1722219771643,0.09318273,69423.0,69422.0,0.632801]
[1722219771845,0.09318273,69423.0,69422.0,0.402327]
[1722219772047,0.09685992,69423.0,69422.0,0.632801]
[1722219772307,0.0897642,69423.0,69422.0,0.402327]
[1722219772942,0.09685992,69423.0,69422.0,0.402327]
[1722219773146,0.05656041,69423.0,69422.0,0.6453552]
[1722219773375,0.05556041,69423.0,69422.0,0.6343552]
[1722219773583,0.05556041,69423.0,69422.0,0.632801]
[1722219773789,0.05556041,69423.0,69422.0,0.415327]
[1722219773790,0.05656041,69423.0,69422.0,0.415327]
[1722219774218,0.05656041,69423.0,69422.0,0.4168812]
[1722219774445,0.05656041,69423.0,69422.0,0.6473552]
[1722219774655,0.1643862,69423.0,69422.0,0.645801]
[1722219774863,0.05656041,69423.0,69422.0,0.415327]
[1722219775301,0.05656041,69423.0,69422.0,0.4168812]
[1722219775515,0.05856041,69423.0,69422.0,0.3016442]
[1722219775689,0.05856041,69423.0,69422.0,0.415327]
[1722219776346,0.05856041,69423.0,69422.0,0.30009]
[1722219776347,0.09783065,69423.0,69422.0,0.30009]
[1722219776558,0.227246,69423.0,69422.0,0.30009]
[1722219776761,0.09783065,69423.0,69422.0,0.30009]
[1722219776966,0.20168435,69423.0,69422.0,0.30009]
[1722219777172,0.09073493,69423.0,69422.0,0.30009]
[1722219777620,0.08873493,69423.0,69422.0,0.30009]
[1722219778063,0.17876206,69423.0,69422.0,0.30009]
[1722219778273,0.13948217,69423.0,69422.0,0.30009]
[1722219778490,0.76295298,69423.0,69422.0,0.30009]
[1722219778713,1.34669172,69423.0,69422.0,0.30009]
[1722219778965,1.34669172,69423.0,69422.0,0.22354421]
[1722219778966,1.19175705,69423.0,69422.0,0.22354421]
[1722219779171,0.96128605,69423.0,69422.0,0.22354421]
[1722219779383,1.23366133,69423.0,69422.0,0.22354421]
[1722219779588,1.19075705,69423.0,69422.0,0.21054421]
[1722219779806,1.06028605,69423.0,69422.0,0.21054421]
[1722219779984,1.00319033,69423.0,69422.0,0.21054421]
[1722219780379,0.96028605,69423.0,69422.0,0.21054421]
[1722219780611,1.23166133,69423.0,69422.0,0.21054421]
[1722219780815,0.115264,69406.0,69403.0,0.0024782]
[1722219781025,0.115267,69404.0,69403.0,0.000924]
[1722219781269,0.40928681,69404.0,69403.0,0.000924]
[1722219781478,0.92945053,69404.0,69403.0,0.000924]
[1722219781700,1.09245053,69404.0,69403.0,0.289094]
[1722219781902,1.29748869,69404.0,69403.0,0.289094]
[1722219782100,1.19748869,69404.0,69403.0,0.289094]
[1722219782511,1.29748869,69404.0,69403.0,0.289094]
[1722219782721,1.26660166,69404.0,69403.0,0.289094]
[1722219782966,1.18006778,69404.0,69403.0,0.289094]
[1722219783176,1.55886135,69404.0,69403.0,0.289094]
[1722219783382,1.56895394,69404.0,69403.0,0.289094]
[1722219783555,1.24725609,69404.0,69403.0,0.289094]
[1722219783804,1.19016037,69404.0,69403.0,0.289094]
[1722219784235,1.18816037,69404.0,69403.0,0.289094]
[1722219784468,1.08496844,69404.0,69403.0,0.296094]
[1722219784698,1.12571628,69404.0,69403.0,0.296094]
[1722219785204,0.571744,69404.0,69403.0,0.296094]
[1722219785475,0.225943,69404.0,69403.0,0.296094]
[1722219785729,0.42630876,69404.0,69403.0,0.296094]
[1722219785974,0.65684276,69404.0,69403.0,0.296094]
[1722219786262,0.30394604,69404.0,69403.0,0.296094]
[1722219786480,0.10655742,69404.0,69403.0,0.296094]
[1722219786716,0.02236991,69404.0,69403.0,0.296094]
[1722219787471,0.27063362,69404.0,69403.0,0.296094]
[1722219787708,0.40588439,69404.0,69403.0,0.296094]
[1722219787963,0.17535039,69404.0,69403.0,0.296094]
[1722219788469,0.06008339,69404.0,69403.0,0.296094]
[1722219788709,0.06917911,69404.0,69403.0,0.296094]
[1722219788917,0.30571115,69404.0,69403.0,0.296094]
[1722219789122,0.28308584,69404.0,69403.0,0.296094]
[1722219789337,0.40588439,69404.0,69403.0,0.296094]
[1722219789547,0.73354625,69404.0,69403.0,0.296094]
[1722219789760,1.10608025,69404.0,69403.0,0.296094]
[1722219789973,1.18497089,69404.0,69403.0,0.296094]
[1722219790191,1.20088166,69404.0,69403.0,0.296094]
[1722219790371,1.22388166,69404.0,69403.0,0.296094]
[1722219790825,1.57923318,69404.0,69403.0,0.26648461]
[1722219791311,1.73123318,69404.0,69403.0,0.26648461]
[1722219791537,1.89074704,69404.0,69403.0,0.26648461]
[1722219791956,1.9113767,69404.0,69403.0,0.26648461]
[1722219792164,1.75386284,69404.0,69403.0,0.26648461]
[1722219792399,1.9440933,69404.0,69403.0,0.25948461]
[1722219792631,1.62412651,69404.0,69403.0,0.25948461]
[1722219793045,1.24159251,69404.0,69403.0,0.25948461]
[1722219794222,1.25669086,69404.0,69403.0,0.25948461]
[1722219794586,1.27069086,69404.0,69403.0,0.25948461]
[1722219794787,0.68662286,69404.0,69403.0,0.25948461]
[1722219794990,0.63022308,69404.0,69403.0,0.25948461]
[1722219795269,0.86075708,69404.0,69403.0,0.25948461]
[1722219795408,0.8481699,69404.0,69403.0,0.25948461]
[1722219795609,1.21848797,69404.0,69403.0,0.25948461]
[1722219795813,1.24111561,69404.0,69403.0,0.25948461]
[1722219796089,1.0787039,69404.0,69403.0,0.25948461]
[1722219796422,1.12260818,69404.0,69403.0,0.25948461]
[1722219796644,1.12260818,69404.0,69403.0,0.26040861]
[1722219797035,0.8511699,69404.0,69403.0,0.26040861]
[1722219797244,0.89407418,69404.0,69403.0,0.26040861]
[1722219797448,0.8511699,69404.0,69403.0,0.26040861]
[1722219797651,1.0787039,69404.0,69403.0,0.26040861]
[1722219797929,1.17517665,69404.0,69403.0,0.26040861]
[1722219798346,1.17317665,69404.0,69403.0,0.26040861]
[1722219798565,1.2477086,69404.0,69403.0,0.26040861]
[1722219798774,1.2567086,69404.0,69403.0,0.26040861]
[1722219798989,1.19266561,69404.0,69403.0,0.26040861]
[1722219799199,1.24657963,69404.0,69403.0,0.26040861]
[1722219799402,1.27120777,69404.0,69403.0,0.26040861]
[1722219799618,1.1551737,69404.0,69403.0,0.26040861]
[1722219799830,1.89732896,69404.0,69403.0,0.26040861]
[1722219800034,2.41508874,69404.0,69403.0,0.26040861]
[1722219800259,2.35399708,69404.0,69403.0,0.26040861]
[1722219800466,2.20873165,69404.0,69403.0,0.26040861]
[1722219800672,1.56988511,69404.0,69403.0,0.26040861]
[1722219800874,1.56988511,69404.0,69403.0,0.23436775]
[1722219800875,1.66314145,69404.0,69403.0,0.23436775]
[1722219801316,1.86703993,69404.0,69403.0,0.23436775]
[1722219801528,1.82797916,69404.0,69403.0,0.23436775]
[1722219801778,2.01667762,69404.0,69403.0,0.23436775]
[1722219802004,2.1901159,69404.0,69403.0,0.23436775]
[1722219802212,3.19221953,69404.0,69403.0,0.23436775]
[1722219802380,3.11509762,69404.0,69403.0,0.23436775]